[Event "Titled Tuesday Blitz February 15 Early 2022"]
[White "Narayanan.S.L"]
[Black "Atakhan, Abtin"]
[WhiteFideId "5058422"]
[BlackFideId "22502203"]
[WhiteElo "2494"]
[BlackElo "2119"]
[Result "1-0"]
[Round "02"]
[TimeControl "180+1"]
[Date "2022.02.15"]
[WhiteClock "0:01:44"]
[BlackClock "0:00:02"]

1. Nf3 {[%clk 0:02:58]}  d5 {[%clk 0:02:58]} 2. g3 {[%clk 0:02:57]}  Nf6 {[%clk 0:02:57]} 3. Bg2 {[%clk 0:02:57]}  g6 {[%clk 0:02:58]} 4. O-O {[%clk 0:02:57]}  Bg7 {[%clk 0:02:58]} 5. d3 {[%clk 0:02:57]}  O-O {[%clk 0:02:58]} 6. Nbd2 {[%clk 0:02:57]}  Nc6 {[%clk 0:02:58]} 7. e4 {[%clk 0:02:58]}  e5 {[%clk 0:02:58]} 8. exd5 {[%clk 0:02:57]}  Nxd5 {[%clk 0:02:58]} 9. Re1 {[%clk 0:02:58]}  Re8 {[%clk 0:02:58]} 10. c3 {[%clk 0:02:58]}  h6 {[%clk 0:02:55]} 11. h4 {[%clk 0:02:53]}  a5 {[%clk 0:02:54]} 12. a4 {[%clk 0:02:52]}  b6 {[%clk 0:02:55]} 13. Qb3 {[%clk 0:02:31]}  Bb7 {[%clk 0:02:27]} 14. h5 {[%clk 0:02:31]}  Nce7 {[%clk 0:01:58]} 15. hxg6 {[%clk 0:02:30]}  Nxg6 {[%clk 0:01:58]} 16. Nc4 {[%clk 0:02:27]}  f5 {[%clk 0:01:53]} 17. Ne3 {[%clk 0:02:24]}  Ne7 {[%clk 0:01:36]} 18. Nh4 {[%clk 0:02:20]}  Qd7 {[%clk 0:01:34]} 19. Nc4 {[%clk 0:02:19]}  Nc8 {[%clk 0:01:13]} 20. Nf3 {[%clk 0:02:08]}  e4 {[%clk 0:01:02]} 21. dxe4 {[%clk 0:02:07]}  fxe4 {[%clk 0:01:02]} 22. Nh4 {[%clk 0:02:07]}  Qg4 {[%clk 0:00:40]} 23. Ne3 {[%clk 0:02:05]}  Qe6 {[%clk 0:00:39]} 24. Nef5 {[%clk 0:02:02]}  Nd6 {[%clk 0:00:36]} 25. Nxd6 {[%clk 0:02:00]}  cxd6 {[%clk 0:00:33]} 26. Rxe4 {[%clk 0:01:59]}  Qf7 {[%clk 0:00:33]} 27. Bd2 {[%clk 0:01:56]}  Rxe4 {[%clk 0:00:33]} 28. Bxe4 {[%clk 0:01:55]}  Rf8 {[%clk 0:00:33]} 29. Rf1 {[%clk 0:01:54]}  Qe6 {[%clk 0:00:26]} 30. Bg2 {[%clk 0:01:52]}  Be5 {[%clk 0:00:20]} 31. Nf3 {[%clk 0:01:51]}  Nc7 {[%clk 0:00:19]} 32. Qxe6+ {[%clk 0:01:50]}  Nxe6 {[%clk 0:00:20]} 33. Nxe5 {[%clk 0:01:51]}  Bxg2 {[%clk 0:00:20]} 34. Kxg2 {[%clk 0:01:51]}  dxe5 {[%clk 0:00:21]} 35. Bxh6 {[%clk 0:01:52]}  Rd8 {[%clk 0:00:21]} 36. Be3 {[%clk 0:01:51]}  Rb8 {[%clk 0:00:19]} 37. Rh1 {[%clk 0:01:49]}  b5 {[%clk 0:00:19]} 38. Rh5 {[%clk 0:01:48]}  bxa4 {[%clk 0:00:19]} 39. Rxe5 {[%clk 0:01:48]}  Rxb2 {[%clk 0:00:16]} 40. Rxa5 {[%clk 0:01:47]}  Ra2 {[%clk 0:00:14]} 41. c4 {[%clk 0:01:47]}  Nc7 {[%clk 0:00:12]} 42. Ra7 {[%clk 0:01:47]}  Ne6 {[%clk 0:00:10]} 43. c5 {[%clk 0:01:46]}  Kf8 {[%clk 0:00:08]} 44. c6 {[%clk 0:01:46]}  Ke8 {[%clk 0:00:09]} 45. Bb6 {[%clk 0:01:44]}  Rc2 {[%clk 0:00:02]} 46. c7 {[%clk 0:01:44]}  Kd7 {[%clk 0:00:02]} 47. Rxa4 {[%clk 0:01:44]} 1-0


[Site "https://www.chess.com"]

[Event "Titled Tuesday Blitz February 15 Early 2022"]
[White "Noroozi, Omid"]
[Black "Szpar, Milosz"]
[WhiteFideId "12501190"]
[BlackFideId "1184989"]
[WhiteElo "2236"]
[BlackElo "2447"]
[Result "0-1"]
[Round "02"]
[TimeControl "180+1"]
[Date "2022.02.15"]
[WhiteClock "0:02:04"]
[BlackClock "0:00:19"]

1. e4 {[%clk 0:02:57]}  c5 {[%clk 0:02:59]} 2. Nf3 {[%clk 0:02:57]}  d6 {[%clk 0:02:59]} 3. Bb5+ {[%clk 0:02:57]}  Bd7 {[%clk 0:02:59]} 4. Bxd7+ {[%clk 0:02:57]}  Nxd7 {[%clk 0:03:00]} 5. O-O {[%clk 0:02:53]}  Ngf6 {[%clk 0:03:00]} 6. Qe2 {[%clk 0:02:54]}  e6 {[%clk 0:02:59]} 7. d4 {[%clk 0:02:54]}  cxd4 {[%clk 0:02:59]} 8. Nxd4 {[%clk 0:02:55]}  Be7 {[%clk 0:02:59]} 9. c4 {[%clk 0:02:56]}  Qa5 {[%clk 0:02:58]} 10. Nc3 {[%clk 0:02:56]}  O-O {[%clk 0:02:57]} 11. a3 {[%clk 0:02:55]}  Rac8 {[%clk 0:02:52]} 12. Be3 {[%clk 0:02:54]}  Ne5 {[%clk 0:02:44]} 13. b4 {[%clk 0:02:51]}  Qd8 {[%clk 0:02:16]} 14. Rad1 {[%clk 0:02:39]}  Nxc4 {[%clk 0:02:04]} 15. Bc1 {[%clk 0:02:40]}  a6 {[%clk 0:01:50]} 16. f4 {[%clk 0:02:38]}  Qb6 {[%clk 0:01:42]} 17. Kh1 {[%clk 0:02:37]}  Nxa3 {[%clk 0:01:23]} 18. Bxa3 {[%clk 0:02:34]}  Rxc3 {[%clk 0:01:22]} 19. Bb2 {[%clk 0:02:35]}  Rcc8 {[%clk 0:01:20]} 20. e5 {[%clk 0:02:32]}  dxe5 {[%clk 0:01:20]} 21. fxe5 {[%clk 0:02:33]}  Nd5 {[%clk 0:01:20]} 22. Nf5 {[%clk 0:02:33]}  exf5 {[%clk 0:01:18]} 23. Rxd5 {[%clk 0:02:34]}  Qe6 {[%clk 0:01:13]} 24. Rd4 {[%clk 0:02:27]}  Rfd8 {[%clk 0:01:09]} 25. Rdf4 {[%clk 0:02:26]}  g6 {[%clk 0:01:01]} 26. g4 {[%clk 0:02:27]}  fxg4 {[%clk 0:00:46]} 27. Rxf7 {[%clk 0:02:26]}  Rf8 {[%clk 0:00:45]} 28. Rxf8+ {[%clk 0:02:23]}  Rxf8 {[%clk 0:00:45]} 29. Rxf8+ {[%clk 0:02:20]}  Bxf8 {[%clk 0:00:45]} 30. Qe4 {[%clk 0:02:19]}  Qc6 {[%clk 0:00:40]} 31. Qxc6 {[%clk 0:02:19]}  bxc6 {[%clk 0:00:40]} 32. Kg2 {[%clk 0:02:20]}  Kf7 {[%clk 0:00:40]} 33. Kg3 {[%clk 0:02:20]}  h5 {[%clk 0:00:38]} 34. Kf4 {[%clk 0:02:21]}  Ke6 {[%clk 0:00:36]} 35. Ke4 {[%clk 0:02:21]}  Bxb4 {[%clk 0:00:36]} 36. Bd4 {[%clk 0:02:22]}  c5 {[%clk 0:00:36]} 37. Be3 {[%clk 0:02:22]}  a5 {[%clk 0:00:36]} 38. Bc1 {[%clk 0:02:22]}  a4 {[%clk 0:00:36]} 39. Bb2 {[%clk 0:02:23]}  a3 {[%clk 0:00:36]} 40. Ba1 {[%clk 0:02:24]}  c4 {[%clk 0:00:35]} 41. Kd4 {[%clk 0:02:25]}  c3 {[%clk 0:00:34]} 42. Kd3 {[%clk 0:02:25]}  Kxe5 {[%clk 0:00:33]} 43. Kc2 {[%clk 0:02:26]}  Bc5 {[%clk 0:00:28]} 44. Kb3 {[%clk 0:02:27]}  Bd4 {[%clk 0:00:28]} 45. Kc2 {[%clk 0:02:26]}  h4 {[%clk 0:00:27]} 46. Kd3 {[%clk 0:02:27]}  g3 {[%clk 0:00:26]} 47. hxg3 {[%clk 0:02:28]}  hxg3 {[%clk 0:00:26]} 48. Ke2 {[%clk 0:02:28]}  c2 {[%clk 0:00:26]} 49. Bxd4+ {[%clk 0:01:57]}  Kxd4 {[%clk 0:00:27]} 50. Kf3 {[%clk 0:01:58]}  c1=Q {[%clk 0:00:24]} 51. Kxg3 {[%clk 0:01:58]}  Qe3+ {[%clk 0:00:22]} 52. Kg4 {[%clk 0:01:59]}  g5 {[%clk 0:00:20]} 53. Kf5 {[%clk 0:01:59]}  Qf4+ {[%clk 0:00:20]} 54. Kg6 {[%clk 0:02:00]}  g4 {[%clk 0:00:20]} 55. Kh7 {[%clk 0:02:00]}  Qg5 {[%clk 0:00:19]} 56. Kh8 {[%clk 0:02:01]}  g3 {[%clk 0:00:18]} 57. Kh7 {[%clk 0:02:02]}  g2 {[%clk 0:00:18]} 58. Kh8 {[%clk 0:02:03]}  g1=Q {[%clk 0:00:19]} 59. Kh7 {[%clk 0:02:04]}  Qh1# {[%clk 0:00:19]} 0-1


[Site "https://www.chess.com"]

[Event "Titled Tuesday Blitz February 15 Early 2022"]
[White "Nurmanova, Alua"]
[Black "Roebers, Jan"]
[WhiteFideId "13729390"]
[BlackFideId "1007815"]
[WhiteElo "1851"]
[BlackElo "2125"]
[Result "1-0"]
[Round "02"]
[TimeControl "180+1"]
[Date "2022.02.15"]
[WhiteClock "0:00:07"]
[BlackClock "0:00:03"]

1. e4 {[%clk 0:03:00]}  e5 {[%clk 0:02:59]} 2. Nf3 {[%clk 0:03:00]}  Nc6 {[%clk 0:02:59]} 3. Bb5 {[%clk 0:02:58]}  a6 {[%clk 0:02:58]} 4. Ba4 {[%clk 0:02:57]}  Nf6 {[%clk 0:02:58]} 5. O-O {[%clk 0:02:54]}  Be7 {[%clk 0:02:58]} 6. Re1 {[%clk 0:02:54]}  b5 {[%clk 0:02:58]} 7. Bb3 {[%clk 0:02:54]}  O-O {[%clk 0:02:58]} 8. c3 {[%clk 0:02:48]}  d5 {[%clk 0:02:57]} 9. exd5 {[%clk 0:02:48]}  Nxd5 {[%clk 0:02:57]} 10. Nxe5 {[%clk 0:02:49]}  Nxe5 {[%clk 0:02:57]} 11. Rxe5 {[%clk 0:02:49]}  c6 {[%clk 0:02:58]} 12. d4 {[%clk 0:02:50]}  Bd6 {[%clk 0:02:58]} 13. Re1 {[%clk 0:02:45]}  Qh4 {[%clk 0:02:57]} 14. g3 {[%clk 0:02:44]}  Qh3 {[%clk 0:02:57]} 15. Qf3 {[%clk 0:02:44]}  Bg4 {[%clk 0:02:56]} 16. Qg2 {[%clk 0:02:37]}  Qh5 {[%clk 0:02:56]} 17. Bxd5 {[%clk 0:02:12]}  cxd5 {[%clk 0:02:54]} 18. Be3 {[%clk 0:01:54]}  Rae8 {[%clk 0:02:32]} 19. Nd2 {[%clk 0:01:52]}  Kh8 {[%clk 0:02:27]} 20. a4 {[%clk 0:01:46]}  b4 {[%clk 0:02:22]} 21. Rac1 {[%clk 0:01:07]}  bxc3 {[%clk 0:02:17]} 22. bxc3 {[%clk 0:01:08]}  Re6 {[%clk 0:02:07]} 23. c4 {[%clk 0:00:50]}  dxc4 {[%clk 0:02:05]} 24. Rxc4 {[%clk 0:00:51]}  Bf4 {[%clk 0:01:39]} 25. Rc5 {[%clk 0:00:40]}  Bxe3 {[%clk 0:01:34]} 26. Rxh5 {[%clk 0:00:36]}  Bxd2 {[%clk 0:01:03]} 27. Rxe6 {[%clk 0:00:36]}  fxe6 {[%clk 0:01:02]} 28. Re5 {[%clk 0:00:28]}  Bf3 {[%clk 0:01:00]} 29. Qf1 {[%clk 0:00:19]}  Rc8 {[%clk 0:00:53]} 30. Rc5 {[%clk 0:00:19]}  Rb8 {[%clk 0:00:45]} 31. h4 {[%clk 0:00:09]}  h6 {[%clk 0:00:44]} 32. Kh2 {[%clk 0:00:07]}  Bb4 {[%clk 0:00:35]} 33. Rc7 {[%clk 0:00:05]}  Ba5 {[%clk 0:00:31]} 34. Rf7 {[%clk 0:00:05]}  Bd5 {[%clk 0:00:29]} 35. Re7 {[%clk 0:00:05]}  Be4 {[%clk 0:00:26]} 36. Qe2 {[%clk 0:00:04]}  Bd5 {[%clk 0:00:23]} 37. Qe5 {[%clk 0:00:05]}  Rg8 {[%clk 0:00:20]} 38. h5 {[%clk 0:00:05]}  Bb4 {[%clk 0:00:20]} 39. Ra7 {[%clk 0:00:05]}  Bf8 {[%clk 0:00:15]} 40. Rxa6 {[%clk 0:00:04]}  Be7 {[%clk 0:00:13]} 41. Rxe6 {[%clk 0:00:04]}  Bxe6 {[%clk 0:00:11]} 42. Qxe6 {[%clk 0:00:05]}  Bf6 {[%clk 0:00:11]} 43. d5 {[%clk 0:00:05]}  Rd8 {[%clk 0:00:10]} 44. d6 {[%clk 0:00:05]}  Kh7 {[%clk 0:00:10]} 45. d7 {[%clk 0:00:06]}  Ra8 {[%clk 0:00:09]} 46. a5 {[%clk 0:00:05]}  Rxa5 {[%clk 0:00:08]} 47. Qxf6 {[%clk 0:00:06]}  gxf6 {[%clk 0:00:07]} 48. d8=Q {[%clk 0:00:06]}  Rxh5+ {[%clk 0:00:08]} 49. Kg2 {[%clk 0:00:06]}  Kg7 {[%clk 0:00:06]} 50. Qe7+ {[%clk 0:00:07]}  Kg6 {[%clk 0:00:06]} 51. Qe8+ {[%clk 0:00:07]}  Kg5 {[%clk 0:00:06]} 52. f4+ {[%clk 0:00:07]}  Kg4 {[%clk 0:00:06]} 53. Qg6+ {[%clk 0:00:08]}  Rg5 {[%clk 0:00:04]} 54. fxg5 {[%clk 0:00:08]}  fxg5 {[%clk 0:00:04]} 55. Qe4+ {[%clk 0:00:08]}  Kh5 {[%clk 0:00:04]} 56. Qe8+ {[%clk 0:00:08]}  Kg4 {[%clk 0:00:04]} 57. Qg6 {[%clk 0:00:06]}  h5 {[%clk 0:00:03]} 58. Qe4# {[%clk 0:00:07]} 1-0


[Site "https://www.chess.com"]

[Event "Titled Tuesday Blitz February 15 Early 2022"]
[White "Orozbaev, Eldiar"]
[Black "Moskvin, Anatoly"]
[WhiteFideId "13802240"]
[BlackFideId "24199990"]
[WhiteElo "2050"]
[BlackElo "2079"]
[Result "0-1"]
[Round "02"]
[TimeControl "180+1"]
[Date "2022.02.15"]
[WhiteClock "0:00:13"]
[BlackClock "0:00:04"]

1. e4 {[%clk 0:02:52]}  e5 {[%clk 0:02:59]} 2. Nf3 {[%clk 0:02:48]}  Nc6 {[%clk 0:02:59]} 3. d4 {[%clk 0:02:42]}  exd4 {[%clk 0:02:58]} 4. c3 {[%clk 0:02:39]}  d5 {[%clk 0:02:57]} 5. exd5 {[%clk 0:02:38]}  Qxd5 {[%clk 0:02:58]} 6. cxd4 {[%clk 0:02:28]}  Bg4 {[%clk 0:02:56]} 7. Be2 {[%clk 0:02:28]}  O-O-O {[%clk 0:02:53]} 8. O-O {[%clk 0:02:26]}  Nf6 {[%clk 0:02:54]} 9. Nc3 {[%clk 0:02:21]}  Qa5 {[%clk 0:02:31]} 10. Be3 {[%clk 0:01:57]}  Nd5 {[%clk 0:01:51]} 11. Qb3 {[%clk 0:01:51]}  Nxe3 {[%clk 0:01:36]} 12. fxe3 {[%clk 0:01:48]}  Qh5 {[%clk 0:01:01]} 13. h3 {[%clk 0:01:19]}  Be6 {[%clk 0:01:00]} 14. Qa4 {[%clk 0:01:10]}  Qh6 {[%clk 0:00:56]} 15. Bb5 {[%clk 0:01:10]}  Qxe3+ {[%clk 0:00:52]} 16. Kh1 {[%clk 0:01:09]}  Nb8 {[%clk 0:00:33]} 17. Qxa7 {[%clk 0:01:06]}  Bd6 {[%clk 0:00:30]} 18. a4 {[%clk 0:00:53]}  Qh6 {[%clk 0:00:16]} 19. a5 {[%clk 0:00:34]}  Bxh3 {[%clk 0:00:15]} 20. a6 {[%clk 0:00:27]}  Bg4+ {[%clk 0:00:03]} 21. Kg1 {[%clk 0:00:27]}  Bxf3 {[%clk 0:00:03]} 22. Rxf3 {[%clk 0:00:20]}  Qh2+ {[%clk 0:00:03]} 23. Kf2 {[%clk 0:00:19]}  bxa6 {[%clk 0:00:04]} 24. Bxa6+ {[%clk 0:00:16]}  Nxa6 {[%clk 0:00:04]} 25. Qxa6+ {[%clk 0:00:14]}  Kd7 {[%clk 0:00:04]} 26. Qb5+ {[%clk 0:00:13]}  c6 {[%clk 0:00:04]} 0-1


[Site "https://www.chess.com"]

[Event "Titled Tuesday Blitz February 15 Early 2022"]
[White "Papasimakopoulos, Alexandros"]
[Black "Borisova, Ekaterina"]
[WhiteFideId "4244125"]
[BlackFideId "34124184"]
[WhiteElo "2340"]
[BlackElo "2034"]
[Result "0-1"]
[Round "02"]
[TimeControl "180+1"]
[Date "2022.02.15"]
[WhiteClock "0:00:09"]
[BlackClock "0:00:10"]

1. d4 {[%clk 0:03:00]}  Nf6 {[%clk 0:02:59]} 2. c4 {[%clk 0:03:01]}  e6 {[%clk 0:03:00]} 3. Nc3 {[%clk 0:03:00]}  Bb4 {[%clk 0:03:00]} 4. Qc2 {[%clk 0:03:00]}  d5 {[%clk 0:02:58]} 5. cxd5 {[%clk 0:03:00]}  exd5 {[%clk 0:02:58]} 6. Bg5 {[%clk 0:03:00]}  c6 {[%clk 0:02:54]} 7. e3 {[%clk 0:03:00]}  h6 {[%clk 0:02:52]} 8. Bh4 {[%clk 0:02:58]}  O-O {[%clk 0:02:51]} 9. Bd3 {[%clk 0:02:55]}  Re8 {[%clk 0:02:50]} 10. Nf3 {[%clk 0:02:55]}  Bd6 {[%clk 0:02:41]} 11. O-O {[%clk 0:02:50]}  Bg4 {[%clk 0:02:40]} 12. Bg3 {[%clk 0:02:46]}  Bxf3 {[%clk 0:02:38]} 13. gxf3 {[%clk 0:02:47]}  a5 {[%clk 0:02:35]} 14. a3 {[%clk 0:02:32]}  Na6 {[%clk 0:02:24]} 15. Rab1 {[%clk 0:02:31]}  Nc7 {[%clk 0:02:24]} 16. b4 {[%clk 0:02:30]}  axb4 {[%clk 0:02:24]} 17. axb4 {[%clk 0:02:31]}  Ne6 {[%clk 0:02:24]} 18. b5 {[%clk 0:02:28]}  Ra3 {[%clk 0:02:09]} 19. bxc6 {[%clk 0:02:27]}  bxc6 {[%clk 0:02:09]} 20. Ne2 {[%clk 0:02:21]}  Qd7 {[%clk 0:01:55]} 21. Bxd6 {[%clk 0:02:02]}  Qxd6 {[%clk 0:01:54]} 22. f4 {[%clk 0:02:03]}  g5 {[%clk 0:01:39]} 23. f5 {[%clk 0:01:47]}  Ng7 {[%clk 0:01:29]} 24. Ra1 {[%clk 0:01:43]}  Rea8 {[%clk 0:01:24]} 25. Rxa3 {[%clk 0:01:41]}  Rxa3 {[%clk 0:01:25]} 26. Rc1 {[%clk 0:01:37]}  Ngh5 {[%clk 0:01:15]} 27. Ng3 {[%clk 0:01:31]}  Ng4 {[%clk 0:00:59]} 28. Be2 {[%clk 0:01:07]}  Nxg3 {[%clk 0:00:52]} 29. Bxg4 {[%clk 0:01:01]}  Ne4 {[%clk 0:00:46]} 30. Qxc6 {[%clk 0:00:56]}  Qxc6 {[%clk 0:00:45]} 31. Rxc6 {[%clk 0:00:57]}  Ra1+ {[%clk 0:00:41]} 32. Kg2 {[%clk 0:00:56]}  Ra2 {[%clk 0:00:41]} 33. Rc8+ {[%clk 0:00:30]}  Kg7 {[%clk 0:00:41]} 34. Rd8 {[%clk 0:00:30]}  Nxf2 {[%clk 0:00:24]} 35. Kg3 {[%clk 0:00:19]}  Ne4+ {[%clk 0:00:18]} 36. Kh3 {[%clk 0:00:18]}  Nf6 {[%clk 0:00:10]} 37. Bf3 {[%clk 0:00:14]}  Ra3 {[%clk 0:00:10]} 38. Bxd5 {[%clk 0:00:15]}  Rxe3+ {[%clk 0:00:10]} 39. Kg2 {[%clk 0:00:15]}  Nxd5 {[%clk 0:00:03]} 40. Rxd5 {[%clk 0:00:14]}  Kf6 {[%clk 0:00:04]} 41. Kf2 {[%clk 0:00:15]}  Rh3 {[%clk 0:00:04]} 42. Kg2 {[%clk 0:00:15]}  Rd3 {[%clk 0:00:04]} 43. Kf2 {[%clk 0:00:12]}  h5 {[%clk 0:00:04]} 44. Kg2 {[%clk 0:00:10]}  g4 {[%clk 0:00:03]} 45. Kf2 {[%clk 0:00:07]}  h4 {[%clk 0:00:04]} 46. Kg2 {[%clk 0:00:07]}  Kg5 {[%clk 0:00:04]} 47. Kf2 {[%clk 0:00:06]}  f6 {[%clk 0:00:04]} 48. Rd8 {[%clk 0:00:06]}  Kxf5 {[%clk 0:00:04]} 49. Ke2 {[%clk 0:00:06]}  Rh3 {[%clk 0:00:04]} 50. d5 {[%clk 0:00:06]}  Rxh2+ {[%clk 0:00:05]} 51. Ke3 {[%clk 0:00:07]}  Rh1 {[%clk 0:00:05]} 52. d6 {[%clk 0:00:07]}  Rd1 {[%clk 0:00:05]} 53. d7 {[%clk 0:00:07]}  h3 {[%clk 0:00:05]} 54. Ke2 {[%clk 0:00:07]}  Rd6 {[%clk 0:00:05]} 55. Ke3 {[%clk 0:00:08]}  h2 {[%clk 0:00:05]} 56. Rh8 {[%clk 0:00:08]}  Rxd7 {[%clk 0:00:06]} 57. Rh5+ {[%clk 0:00:09]}  Kg6 {[%clk 0:00:06]} 58. Rxh2 {[%clk 0:00:10]}  Ra7 {[%clk 0:00:06]} 59. Rb2 {[%clk 0:00:09]}  Ra4 {[%clk 0:00:05]} 60. Rb5 {[%clk 0:00:08]}  f5 {[%clk 0:00:04]} 61. Kf2 {[%clk 0:00:09]}  Kg5 {[%clk 0:00:04]} 62. Kg2 {[%clk 0:00:09]}  Ra3 {[%clk 0:00:04]} 63. Rb2 {[%clk 0:00:10]}  Re3 {[%clk 0:00:04]} 64. Kh2 {[%clk 0:00:10]}  Kf4 {[%clk 0:00:04]} 65. Ra2 {[%clk 0:00:10]}  Kg5 {[%clk 0:00:04]} 66. Ra5 {[%clk 0:00:10]}  Rc3 {[%clk 0:00:03]} 67. Kg2 {[%clk 0:00:10]}  Re3 {[%clk 0:00:03]} 68. Kh2 {[%clk 0:00:11]}  Kf4 {[%clk 0:00:03]} 69. Ra4+ {[%clk 0:00:10]}  Re4 {[%clk 0:00:04]} 70. Ra2 {[%clk 0:00:10]}  Kg5 {[%clk 0:00:03]} 71. Ra5 {[%clk 0:00:11]}  Re6 {[%clk 0:00:03]} 72. Kg3 {[%clk 0:00:11]}  Re3+ {[%clk 0:00:03]} 73. Kf2 {[%clk 0:00:11]}  Rb3 {[%clk 0:00:04]} 74. Kg2 {[%clk 0:00:12]}  Rb2+ {[%clk 0:00:03]} 75. Kg3 {[%clk 0:00:12]}  Rc2 {[%clk 0:00:03]} 76. Rb5 {[%clk 0:00:09]}  Rc3+ {[%clk 0:00:03]} 77. Kg2 {[%clk 0:00:09]}  Kf4 {[%clk 0:00:04]} 78. Rb4+ {[%clk 0:00:09]}  Ke5 {[%clk 0:00:04]} 79. Rb5+ {[%clk 0:00:10]}  Kf6 {[%clk 0:00:04]} 80. Rb6+ {[%clk 0:00:10]}  Kg5 {[%clk 0:00:04]} 81. Rb5 {[%clk 0:00:11]}  Rc4 {[%clk 0:00:05]} 82. Kg3 {[%clk 0:00:10]}  Re4 {[%clk 0:00:05]} 83. Ra5 {[%clk 0:00:10]}  Kf6 {[%clk 0:00:05]} 84. Ra6+ {[%clk 0:00:10]}  Re6 {[%clk 0:00:06]} 85. Ra8 {[%clk 0:00:09]}  Kg5 {[%clk 0:00:04]} 86. Rg8+ {[%clk 0:00:08]}  Rg6 {[%clk 0:00:04]} 87. Rf8 {[%clk 0:00:09]}  Rf6 {[%clk 0:00:03]} 88. Rg8+ {[%clk 0:00:09]}  Rg6 {[%clk 0:00:03]} 89. Rf8 {[%clk 0:00:09]}  Rg7 {[%clk 0:00:03]} 90. Ra8 {[%clk 0:00:06]}  Re7 {[%clk 0:00:03]} 91. Rg8+ {[%clk 0:00:05]}  Kf6 {[%clk 0:00:04]} 92. Rf8+ {[%clk 0:00:05]}  Ke5 {[%clk 0:00:04]} 93. Ra8 {[%clk 0:00:05]}  Rd7 {[%clk 0:00:03]} 94. Re8+ {[%clk 0:00:05]}  Kf6 {[%clk 0:00:03]} 95. Rf8+ {[%clk 0:00:06]}  Kg6 {[%clk 0:00:04]} 96. Rg8+ {[%clk 0:00:06]}  Kf7 {[%clk 0:00:04]} 97. Rg5 {[%clk 0:00:04]}  Rd3+ {[%clk 0:00:04]} 98. Kg2 {[%clk 0:00:04]}  Kf6 {[%clk 0:00:05]} 99. Rg8 {[%clk 0:00:04]}  Ke5 {[%clk 0:00:05]} 100. Ra8 {[%clk 0:00:05]}  Rd5 {[%clk 0:00:03]} 101. Ra4 {[%clk 0:00:05]}  Kf6 {[%clk 0:00:04]} 102. Kg3 {[%clk 0:00:03]}  Kg5 {[%clk 0:00:04]} 103. Ra3 {[%clk 0:00:04]}  f4+ {[%clk 0:00:04]} 104. Kg2 {[%clk 0:00:04]}  Rd2+ {[%clk 0:00:03]} 105. Kg1 {[%clk 0:00:04]}  Kh4 {[%clk 0:00:04]} 106. Rb3 {[%clk 0:00:04]}  f3 {[%clk 0:00:04]} 107. Rb1 {[%clk 0:00:02]}  Kg3 {[%clk 0:00:04]} 108. Kh1 {[%clk 0:00:03]}  Rh2+ {[%clk 0:00:05]} 109. Kg1 {[%clk 0:00:03]}  f2+ {[%clk 0:00:05]} 110. Kf1 {[%clk 0:00:03]}  Rh1+ {[%clk 0:00:06]} 111. Ke2 {[%clk 0:00:04]}  Rxb1 {[%clk 0:00:07]} 112. Ke3 {[%clk 0:00:05]}  f1=Q {[%clk 0:00:08]} 113. Kd2 {[%clk 0:00:05]}  Qf2+ {[%clk 0:00:08]} 114. Kc3 {[%clk 0:00:06]}  Re1 {[%clk 0:00:08]} 115. Kd3 {[%clk 0:00:07]}  Qf3+ {[%clk 0:00:08]} 116. Kc4 {[%clk 0:00:08]}  Re4+ {[%clk 0:00:08]} 117. Kc5 {[%clk 0:00:08]}  Qf5+ {[%clk 0:00:09]} 118. Kb6 {[%clk 0:00:07]}  Re6+ {[%clk 0:00:10]} 119. Kc7 {[%clk 0:00:08]}  Qf7+ {[%clk 0:00:10]} 120. Kd8 {[%clk 0:00:09]}  Re8# {[%clk 0:00:10]} 0-1


[Site "https://www.chess.com"]

[Event "Titled Tuesday Blitz February 15 Early 2022"]
[White "Polster, Christian"]
[Black "Brunner, Nicolas"]
[WhiteFideId "12965081"]
[BlackFideId "620246"]
[WhiteElo "2295"]
[BlackElo "2372"]
[Result "0-1"]
[Round "02"]
[TimeControl "180+1"]
[Date "2022.02.15"]
[WhiteClock "0:00:02"]
[BlackClock "0:01:04"]

1. e4 {[%clk 0:03:00]}  e5 {[%clk 0:02:59]} 2. Nf3 {[%clk 0:03:01]}  Nc6 {[%clk 0:02:58]} 3. Bc4 {[%clk 0:03:00]}  Nf6 {[%clk 0:02:57]} 4. Ng5 {[%clk 0:03:01]}  d5 {[%clk 0:02:56]} 5. exd5 {[%clk 0:03:01]}  Na5 {[%clk 0:02:55]} 6. Bb5+ {[%clk 0:03:02]}  c6 {[%clk 0:02:55]} 7. dxc6 {[%clk 0:03:03]}  bxc6 {[%clk 0:02:56]} 8. Qf3 {[%clk 0:03:04]}  Be7 {[%clk 0:02:42]} 9. Bd3 {[%clk 0:03:04]}  O-O {[%clk 0:02:39]} 10. Nc3 {[%clk 0:03:03]}  h6 {[%clk 0:02:38]} 11. Nge4 {[%clk 0:03:04]}  Nd5 {[%clk 0:02:38]} 12. Ng3 {[%clk 0:03:01]}  Nb4 {[%clk 0:02:37]} 13. O-O {[%clk 0:02:43]}  Nxd3 {[%clk 0:02:33]} 14. Qxd3 {[%clk 0:02:42]}  Qxd3 {[%clk 0:02:32]} 15. cxd3 {[%clk 0:02:43]}  Rd8 {[%clk 0:02:30]} 16. Re1 {[%clk 0:02:42]}  f6 {[%clk 0:02:29]} 17. b3 {[%clk 0:02:21]}  Rxd3 {[%clk 0:02:28]} 18. Bb2 {[%clk 0:01:39]}  Rxd2 {[%clk 0:02:25]} 19. Na4 {[%clk 0:01:36]}  Kf7 {[%clk 0:02:02]} 20. Rac1 {[%clk 0:01:28]}  Rd5 {[%clk 0:01:47]} 21. Ne4 {[%clk 0:00:59]}  Bf5 {[%clk 0:01:43]} 22. Nec5 {[%clk 0:00:47]}  Rad8 {[%clk 0:01:38]} 23. b4 {[%clk 0:00:40]}  Rb8 {[%clk 0:01:29]} 24. Na6 {[%clk 0:00:06]}  Rb7 {[%clk 0:01:09]} 25. bxa5 {[%clk 0:00:06]}  Rxa5 {[%clk 0:01:05]} 26. Rxc6 {[%clk 0:00:02]}  Rxa4 {[%clk 0:01:04]} 0-1


[Site "https://www.chess.com"]

[Event "Titled Tuesday Blitz February 15 Early 2022"]
[White "Popadic, Dragan"]
[Black "Kuzubov, Yuriy"]
[WhiteFideId "913650"]
[BlackFideId "14112906"]
[WhiteElo "2199"]
[BlackElo "2548"]
[Result "0-1"]
[Round "02"]
[TimeControl "180+1"]
[Date "2022.02.15"]
[WhiteClock "0:00:56"]
[BlackClock "0:01:26"]

1. e4 {[%clk 0:03:00]}  c5 {[%clk 0:03:00]} 2. Nc3 {[%clk 0:03:00]}  d6 {[%clk 0:02:59]} 3. f4 {[%clk 0:02:59]}  g6 {[%clk 0:02:56]} 4. Nf3 {[%clk 0:02:58]}  Bg7 {[%clk 0:02:56]} 5. Bc4 {[%clk 0:02:58]}  e6 {[%clk 0:02:55]} 6. d3 {[%clk 0:02:58]}  Ne7 {[%clk 0:02:55]} 7. O-O {[%clk 0:02:58]}  d5 {[%clk 0:02:50]} 8. Bb5+ {[%clk 0:02:47]}  Bd7 {[%clk 0:02:50]} 9. Bxd7+ {[%clk 0:02:47]}  Nxd7 {[%clk 0:02:46]} 10. Qe1 {[%clk 0:02:47]}  O-O {[%clk 0:02:41]} 11. Kh1 {[%clk 0:02:45]}  Re8 {[%clk 0:02:33]} 12. Bd2 {[%clk 0:02:43]}  Nc6 {[%clk 0:02:31]} 13. e5 {[%clk 0:02:42]}  f6 {[%clk 0:02:28]} 14. exf6 {[%clk 0:02:38]}  Qxf6 {[%clk 0:02:27]} 15. Qg3 {[%clk 0:02:25]}  Rac8 {[%clk 0:02:17]} 16. Nb5 {[%clk 0:02:15]}  Qf8 {[%clk 0:02:14]} 17. Bc3 {[%clk 0:02:09]}  d4 {[%clk 0:02:11]} 18. Bd2 {[%clk 0:02:06]}  a6 {[%clk 0:02:11]} 19. Na3 {[%clk 0:02:03]}  b5 {[%clk 0:02:11]} 20. Rae1 {[%clk 0:01:58]}  Qd6 {[%clk 0:02:02]} 21. Qh3 {[%clk 0:01:43]}  Nf6 {[%clk 0:01:50]} 22. Nb1 {[%clk 0:01:36]}  Qd5 {[%clk 0:01:45]} 23. a3 {[%clk 0:01:30]}  Qf5 {[%clk 0:01:44]} 24. Qh4 {[%clk 0:01:21]}  c4 {[%clk 0:01:35]} 25. Ng5 {[%clk 0:01:08]}  cxd3 {[%clk 0:01:29]} 26. cxd3 {[%clk 0:01:08]}  Qxd3 {[%clk 0:01:30]} 27. Nxe6 {[%clk 0:01:02]}  Rxe6 {[%clk 0:01:29]} 28. Qh3 {[%clk 0:00:56]}  Qxh3 {[%clk 0:01:26]} 0-1


[Site "https://www.chess.com"]